Workbook

Sheet MDD
A4: Data | B4: Preço | D4: Máximo Drawdown: | E4: =MDD(B5:B16) -> -0.2
A5: 1 | B5: 100
A6: 2 | B6: 85
A7: 3 | B7: 82
A8: 4 | B8: 95
A9: =A8+1 -> 5 | B9: 104
A10: =A9+1 -> 6 | B10: 110
A11: 7 | B11: 103
A12: 8 | B12: 109
A13: 9 | B13: 92
A14: 10 | B14: 88 | C14: =B14/B10-1 -> -0.2
A15: 11 | B15: 95
A16: 12 | B16: 102

Sheet Underwater
A4: Data | B4: Preço | C4: Underwater | E4: MDD | F4: =MIN(C5:C16) -> -0.2
A5: 1 | B5: 100 | C5: 0
A6: 2 | B6: 85 | C6: =B6/MAX(B$5:B6)-1 -> -0.15
A7: 3 | B7: 82 | C7: =B7/MAX(B$5:B7)-1 -> -0.18
A8: 4 | B8: 95 | C8: =B8/MAX(B$5:B8)-1 -> -0.05
A9: =A8+1 -> 5 | B9: 104 | C9: =B9/MAX(B$5:B9)-1 -> 0
A10: =A9+1 -> 6 | B10: 110 | C10: =B10/MAX(B$5:B10)-1 -> 0
A11: 7 | B11: 103 | C11: =B11/MAX(B$5:B11)-1 -> -0.06363636364
A12: 8 | B12: 109 | C12: =B12/MAX(B$5:B12)-1 -> -0.009090909091
A13: 9 | B13: 92 | C13: =B13/MAX(B$5:B13)-1 -> -0.1636363636
A14: 10 | B14: 88 | C14: =B14/MAX(B$5:B14)-1 -> -0.2
A15: 11 | B15: 95 | C15: =B15/MAX(B$5:B15)-1 -> -0.1363636364
A16: 12 | B16: 102 | C16: =B16/MAX(B$5:B16)-1 -> -0.07272727273

Sheet Bitcoin
A4: Data | B4: Preço | C4: Underwater | D4: MDD | E4: =MIN(C5:C718) -> -0.3549278157
A5: 2016-01-15 | B5: 434 | C5: 0
A6: 2016-01-16 | B6: 432.7 | C6: =B6/MAX(B$5:B6)-1 -> -0.002995391705
A7: 2016-01-17 | B7: 428.7 | C7: =B7/MAX(B$5:B7)-1 -> -0.01221198157
A8: 2016-01-18 | B8: 432.9 | C8: =B8/MAX(B$5:B8)-1 -> -0.002534562212
A9: 2016-01-19 | B9: 431.8 | C9: =B9/MAX(B$5:B9)-1 -> -0.005069124424
A10: 2016-01-20 | B10: 428 | C10: =B10/MAX(B$5:B10)-1 -> -0.01382488479
A11: 2016-01-21 | B11: 459 | C11: =B11/MAX(B$5:B11)-1 -> 0
A12: 2016-01-22 | B12: 454 | C12: =B12/MAX(B$5:B12)-1 -> -0.01089324619
A13: 2016-01-23 | B13: 449.2 | C13: =B13/MAX(B$5:B13)-1 -> -0.02135076253
A14: 2016-01-24 | B14: 449.4 | C14: =B14/MAX(B$5:B14)-1 -> -0.02091503268
A15: 2016-01-25 | B15: 449.3 | C15: =B15/MAX(B$5:B15)-1 -> -0.0211328976
A16: 2016-01-26 | B16: 432 | C16: =B16/MAX(B$5:B16)-1 -> -0.05882352941
A17: 2016-01-27 | B17: 431.1 | C17: =B17/MAX(B$5:B17)-1 -> -0.06078431373
A18: 2016-01-28 | B18: 429.3 | C18: =B18/MAX(B$5:B18)-1 -> -0.06470588235
A19: 2016-01-29 | B19: 358.9 | C19: =B19/MAX(B$5:B19)-1 -> -0.2180827887
A20: 2016-01-30 | B20: 388.4 | C20: =B20/MAX(B$5:B20)-1 -> -0.1538126362
A21: 2016-01-31 | B21: 382.1 | C21: =B21/MAX(B$5:B21)-1 -> -0.1675381264
A22: 2016-02-01 | B22: 387 | C22: =B22/MAX(B$5:B22)-1 -> -0.1568627451
A23: 2016-02-02 | B23: 379 | C23: =B23/MAX(B$5:B23)-1 -> -0.174291939
A24: 2016-02-03 | B24: 419.4 | C24: =B24/MAX(B$5:B24)-1 -> -0.0862745098
A25: 2016-02-04 | B25: 411 | C25: =B25/MAX(B$5:B25)-1 -> -0.1045751634
A26: 2016-02-05 | B26: 381 | C26: =B26/MAX(B$5:B26)-1 -> -0.1699346405
A27: 2016-02-06 | B27: 385.6 | C27: =B27/MAX(B$5:B27)-1 -> -0.159912854
A28: 2016-02-07 | B28: 402.8 | C28: =B28/MAX(B$5:B28)-1 -> -0.1224400871
A29: 2016-02-08 | B29: 391 | C29: =B29/MAX(B$5:B29)-1 -> -0.1481481481
A30: 2016-02-09 | B30: 391.3 | C30: =B30/MAX(B$5:B30)-1 -> -0.1474945534
A31: 2016-02-10 | B31: 395 | C31: =B31/MAX(B$5:B31)-1 -> -0.1394335512
A32: 2016-02-11 | B32: 378.4 | C32: =B32/MAX(B$5:B32)-1 -> -0.1755991285
A33: 2016-02-12 | B33: 377.6 | C33: =B33/MAX(B$5:B33)-1 -> -0.1773420479
A34: 2016-02-13 | B34: 377 | C34: =B34/MAX(B$5:B34)-1 -> -0.1786492375
A35: 2016-02-14 | B35: 365.5 | C35: =B35/MAX(B$5:B35)-1 -> -0.2037037037
A36: 2016-02-15 | B36: 371.4 | C36: =B36/MAX(B$5:B36)-1 -> -0.1908496732
A37: 2016-02-16 | B37: 372.9 | C37: =B37/MAX(B$5:B37)-1 -> -0.1875816993
A38: 2016-02-17 | B38: 369 | C38: =B38/MAX(B$5:B38)-1 -> -0.1960784314
A39: 2016-02-18 | B39: 389.8 | C39: =B39/MAX(B$5:B39)-1 -> -0.1507625272
A40: 2016-02-19 | B40: 386.5 | C40: =B40/MAX(B$5:B40)-1 -> -0.1579520697
A41: 2016-02-20 | B41: 373.8 | C41: =B41/MAX(B$5:B41)-1 -> -0.185620915
A42: 2016-02-21 | B42: 372 | C42: =B42/MAX(B$5:B42)-1 -> -0.1895424837
A43: 2016-02-22 | B43: 370.5 | C43: =B43/MAX(B$5:B43)-1 -> -0.1928104575
A44: 2016-02-23 | B44: 374 | C44: =B44/MAX(B$5:B44)-1 -> -0.1851851852
A45: 2016-02-24 | B45: 380.9 | C45: =B45/MAX(B$5:B45)-1 -> -0.1701525054
A46: 2016-02-25 | B46: 378 | C46: =B46/MAX(B$5:B46)-1 -> -0.1764705882
A47: 2016-02-26 | B47: 383 | C47: =B47/MAX(B$5:B47)-1 -> -0.165577342
A48: 2016-02-27 | B48: 393 | C48: =B48/MAX(B$5:B48)-1 -> -0.1437908497
A49: 2016-02-28 | B49: 408.3 | C49: =B49/MAX(B$5:B49)-1 -> -0.1104575163
A50: 2016-02-29 | B50: 399.9 | C50: =B50/MAX(B$5:B50)-1 -> -0.1287581699
A51: 2016-03-01 | B51: 407.3 | C51: =B51/MAX(B$5:B51)-1 -> -0.1126361656
A52: 2016-03-02 | B52: 414.9 | C52: =B52/MAX(B$5:B52)-1 -> -0.09607843137
A53: 2016-03-03 | B53: 421.5 | C53: =B53/MAX(B$5:B53)-1 -> -0.08169934641
A54: 2016-03-04 | B54: 420 | C54: =B54/MAX(B$5:B54)-1 -> -0.08496732026
A55: 2016-03-05 | B55: 438.7 | C55: =B55/MAX(B$5:B55)-1 -> -0.04422657952
A56: 2016-03-06 | B56: 440.5 | C56: =B56/MAX(B$5:B56)-1 -> -0.04030501089
A57: 2016-03-07 | B57: 440.3 | C57: =B57/MAX(B$5:B57)-1 -> -0.04074074074
A58: 2016-03-08 | B58: 421.1 | C58: =B58/MAX(B$5:B58)-1 -> -0.0825708061
A59: 2016-03-09 | B59: 426.4 | C59: =B59/MAX(B$5:B59)-1 -> -0.07102396514
A60: 2016-03-10 | B60: 424.9 | C60: =B60/MAX(B$5:B60)-1 -> -0.074291939
A61: 2016-03-11 | B61: 435.3 | C61: =B61/MAX(B$5:B61)-1 -> -0.05163398693
A62: 2016-03-12 | B62: 434.2 | C62: =B62/MAX(B$5:B62)-1 -> -0.05403050109
A63: 2016-03-13 | B63: 434.5 | C63: =B63/MAX(B$5:B63)-1 -> -0.05337690632
A64: 2016-03-14 | B64: 439.2 | C64: =B64/MAX(B$5:B64)-1 -> -0.0431372549
A65: 2016-03-15 | B65: 434.8 | C65: =B65/MAX(B$5:B65)-1 -> -0.05272331155
A66: 2016-03-16 | B66: 422.2 | C66: =B66/MAX(B$5:B66)-1 -> -0.08017429194
A67: 2016-03-17 | B67: 420.6 | C67: =B67/MAX(B$5:B67)-1 -> -0.08366013072
A68: 2016-03-18 | B68: 408.8 | C68: =B68/MAX(B$5:B68)-1 -> -0.1093681917
A69: 2016-03-19 | B69: 397.4 | C69: =B69/MAX(B$5:B69)-1 -> -0.134204793
A70: 2016-03-20 | B70: 403.9 | C70: =B70/MAX(B$5:B70)-1 -> -0.120043573
A71: 2016-03-21 | B71: 412.7 | C71: =B71/MAX(B$5:B71)-1 -> -0.1008714597
A72: 2016-03-22 | B72: 411.4 | C72: =B72/MAX(B$5:B72)-1 -> -0.1037037037
A73: 2016-03-23 | B73: 412.9 | C73: =B73/MAX(B$5:B73)-1 -> -0.1004357298
A74: 2016-03-24 | B74: 416.5 | C74: =B74/MAX(B$5:B74)-1 -> -0.09259259259
A75: 2016-03-25 | B75: 420.5 | C75: =B75/MAX(B$5:B75)-1 -> -0.08387799564
A76: 2016-03-26 | B76: 410 | C76: =B76/MAX(B$5:B76)-1 -> -0.1067538126
A77: 2016-03-27 | B77: 411.8 | C77: =B77/MAX(B$5:B77)-1 -> -0.102832244
A78: 2016-03-28 | B78: 416 | C78: =B78/MAX(B$5:B78)-1 -> -0.09368191721
A79: 2016-03-29 | B79: 415.5 | C79: =B79/MAX(B$5:B79)-1 -> -0.09477124183
A80: 2016-03-30 | B80: 417.3 | C80: =B80/MAX(B$5:B80)-1 -> -0.0908496732
A81: 2016-03-31 | B81: 418.8 | C81: =B81/MAX(B$5:B81)-1 -> -0.08758169935
A82: 2016-04-01 | B82: 407.7 | C82: =B82/MAX(B$5:B82)-1 -> -0.1117647059
A83: 2016-04-02 | B83: 408.4 | C83: =B83/MAX(B$5:B83)-1 -> -0.1102396514
A84: 2016-04-03 | B84: 411.3 | C84: =B84/MAX(B$5:B84)-1 -> -0.1039215686
A85: 2016-04-04 | B85: 411.9 | C85: =B85/MAX(B$5:B85)-1 -> -0.1026143791
A86: 2016-04-05 | B86: 417.7 | C86: =B86/MAX(B$5:B86)-1 -> -0.08997821351
A87: 2016-04-06 | B87: 418.1 | C87: =B87/MAX(B$5:B87)-1 -> -0.08910675381
A88: 2016-04-07 | B88: 415.3 | C88: =B88/MAX(B$5:B88)-1 -> -0.09520697168
A89: 2016-04-08 | B89: 416 | C89: =B89/MAX(B$5:B89)-1 -> -0.09368191721
A90: 2016-04-09 | B90: 416.7 | C90: =B90/MAX(B$5:B90)-1 -> -0.09215686275
A91: 2016-04-10 | B91: 427.4 | C91: =B91/MAX(B$5:B91)-1 -> -0.0688453159
A92: 2016-04-11 | B92: 424.1 | C92: =B92/MAX(B$5:B92)-1 -> -0.07603485839
A93: 2016-04-12 | B93: 415.8 | C93: =B93/MAX(B$5:B93)-1 -> -0.09411764706
A94: 2016-04-13 | B94: 413.2 | C94: =B94/MAX(B$5:B94)-1 -> -0.09978213508
A95: 2016-04-14 | B95: 416 | C95: =B95/MAX(B$5:B95)-1 -> -0.09368191721
A96: 2016-04-15 | B96: 417.6 | C96: =B96/MAX(B$5:B96)-1 -> -0.09019607843
A97: 2016-04-16 | B97: 420.3 | C97: =B97/MAX(B$5:B97)-1 -> -0.08431372549
A98: 2016-04-17 | B98: 420.6 | C98: =B98/MAX(B$5:B98)-1 -> -0.08366013072
A99: 2016-04-18 | B99: 420.5 | C99: =B99/MAX(B$5:B99)-1 -> -0.08387799564
A100: 2016-04-19 | B100: 423.8 | C100: =B100/MAX(B$5:B100)-1 -> -0.07668845316
A101: 2016-04-20 | B101: 422.6 | C101: =B101/MAX(B$5:B101)-1 -> -0.07930283224
A102: 2016-04-21 | B102: 422.3 | C102: =B102/MAX(B$5:B102)-1 -> -0.07995642702
A103: 2016-04-22 | B103: 418.5 | C103: =B103/MAX(B$5:B103)-1 -> -0.08823529412
A104: 2016-04-23 | B104: 418.5 | C104: =B104/MAX(B$5:B104)-1 -> -0.08823529412
A105: 2016-04-24 | B105: 421.3 | C105: =B105/MAX(B$5:B105)-1 -> -0.08213507625
A106: 2016-04-25 | B106: 423.7 | C106: =B106/MAX(B$5:B106)-1 -> -0.07690631808
A107: 2016-04-26 | B107: 426.6 | C107: =B107/MAX(B$5:B107)-1 -> -0.07058823529
A108: 2016-04-27 | B108: 424.8 | C108: =B108/MAX(B$5:B108)-1 -> -0.07450980392
A109: 2016-04-28 | B109: 426 | C109: =B109/MAX(B$5:B109)-1 -> -0.07189542484
A110: 2016-04-29 | B110: 431.5 | C110: =B110/MAX(B$5:B110)-1 -> -0.05991285403
A111: 2016-04-30 | B111: 432 | C111: =B111/MAX(B$5:B111)-1 -> -0.05882352941
A112: 2016-05-01 | B112: 428.5 | C112: =B112/MAX(B$5:B112)-1 -> -0.06644880174
A113: 2016-05-02 | B113: 430 | C113: =B113/MAX(B$5:B113)-1 -> -0.06318082789
A114: 2016-05-03 | B114: 437.8 | C114: =B114/MAX(B$5:B114)-1 -> -0.04618736383
A115: 2016-05-04 | B115: 444 | C115: =B115/MAX(B$5:B115)-1 -> -0.03267973856
A116: 2016-05-05 | B116: 452 | C116: =B116/MAX(B$5:B116)-1 -> -0.01525054466
A117: 2016-05-06 | B117: 447.8 | C117: =B117/MAX(B$5:B117)-1 -> -0.02440087146
A118: 2016-05-07 | B118: 453.7 | C118: =B118/MAX(B$5:B118)-1 -> -0.01154684096
A119: 2016-05-08 | B119: 463 | C119: =B119/MAX(B$5:B119)-1 -> 0
A120: 2016-05-09 | B120: 461.8 | C120: =B120/MAX(B$5:B120)-1 -> -0.002591792657
A121: 2016-05-10 | B121: 468.1 | C121: =B121/MAX(B$5:B121)-1 -> 0
A122: 2016-05-11 | B122: 445.1 | C122: =B122/MAX(B$5:B122)-1 -> -0.04913480026
A123: 2016-05-12 | B123: 450.5 | C123: =B123/MAX(B$5:B123)-1 -> -0.03759880367
A124: 2016-05-13 | B124: 455.3 | C124: =B124/MAX(B$5:B124)-1 -> -0.02734458449
A125: 2016-05-14 | B125: 446.6 | C125: =B125/MAX(B$5:B125)-1 -> -0.04593035676
A126: 2016-05-15 | B126: 451.1 | C126: =B126/MAX(B$5:B126)-1 -> -0.03631702628
A127: 2016-05-16 | B127: 443.7 | C127: =B127/MAX(B$5:B127)-1 -> -0.05212561419
A128: 2016-05-17 | B128: 450.4 | C128: =B128/MAX(B$5:B128)-1 -> -0.03781243324
A129: 2016-05-18 | B129: 447.4 | C129: =B129/MAX(B$5:B129)-1 -> -0.04422132023
A130: 2016-05-19 | B130: 448.4 | C130: =B130/MAX(B$5:B130)-1 -> -0.04208502457
A131: 2016-05-20 | B131: 461.2 | C131: =B131/MAX(B$5:B131)-1 -> -0.01474044008
A132: 2016-05-21 | B132: 460.2 | C132: =B132/MAX(B$5:B132)-1 -> -0.01687673574
A133: 2016-05-22 | B133: 459.9 | C133: =B133/MAX(B$5:B133)-1 -> -0.01751762444
A134: 2016-05-23 | B134: 461.6 | C134: =B134/MAX(B$5:B134)-1 -> -0.01388592181
A135: 2016-05-24 | B135: 450.7 | C135: =B135/MAX(B$5:B135)-1 -> -0.03717154454
A136: 2016-05-25 | B136: 452.3 | C136: =B136/MAX(B$5:B136)-1 -> -0.03375347148
A137: 2016-05-26 | B137: 455 | C137: =B137/MAX(B$5:B137)-1 -> -0.02798547319
A138: 2016-05-27 | B138: 455.8 | C138: =B138/MAX(B$5:B138)-1 -> -0.02627643666
A139: 2016-05-28 | B139: 455.8 | C139: =B139/MAX(B$5:B139)-1 -> -0.02627643666
A140: 2016-05-29 | B140: 457.9 | C140: =B140/MAX(B$5:B140)-1 -> -0.02179021577
A141: 2016-05-30 | B141: 453 | C141: =B141/MAX(B$5:B141)-1 -> -0.03225806452
A142: 2016-05-31 | B142: 453.2 | C142: =B142/MAX(B$5:B142)-1 -> -0.03183080538
A143: 2016-06-01 | B143: 453.5 | C143: =B143/MAX(B$5:B143)-1 -> -0.03118991668
A144: 2016-06-02 | B144: 435 | C144: =B144/MAX(B$5:B144)-1 -> -0.07071138646
A145: 2016-06-03 | B145: 441.6 | C145: =B145/MAX(B$5:B145)-1 -> -0.05661183508
A146: 2016-06-04 | B146: 440.8 | C146: =B146/MAX(B$5:B146)-1 -> -0.05832087161
A147: 2016-06-05 | B147: 437.5 | C147: =B147/MAX(B$5:B147)-1 -> -0.0653706473
A148: 2016-06-06 | B148: 443.7 | C148: =B148/MAX(B$5:B148)-1 -> -0.05212561419
A149: 2016-06-07 | B149: 445 | C149: =B149/MAX(B$5:B149)-1 -> -0.04934842982
A150: 2016-06-08 | B150: 449.1 | C150: =B150/MAX(B$5:B150)-1 -> -0.0405896176
A151: 2016-06-09 | B151: 454 | C151: =B151/MAX(B$5:B151)-1 -> -0.03012176885
A152: 2016-06-10 | B152: 472 | C152: =B152/MAX(B$5:B152)-1 -> 0
A153: 2016-06-11 | B153: 527 | C153: =B153/MAX(B$5:B153)-1 -> 0
A154: 2016-06-12 | B154: 531 | C154: =B154/MAX(B$5:B154)-1 -> 0
A155: 2016-06-13 | B155: 532.9 | C155: =B155/MAX(B$5:B155)-1 -> 0
A156: 2016-06-14 | B156: 530.7 | C156: =B156/MAX(B$5:B156)-1 -> -0.004128354288
A157: 2016-06-15 | B157: 536.8 | C157: =B157/MAX(B$5:B157)-1 -> 0
A158: 2016-06-16 | B158: 538.8 | C158: =B158/MAX(B$5:B158)-1 -> 0
A159: 2016-06-17 | B159: 570.9 | C159: =B159/MAX(B$5:B159)-1 -> 0
A160: 2016-06-18 | B160: 572.7 | C160: =B160/MAX(B$5:B160)-1 -> 0
A161: 2016-06-19 | B161: 574 | C161: =B161/MAX(B$5:B161)-1 -> 0
A162: 2016-06-20 | B162: 585.2 | C162: =B162/MAX(B$5:B162)-1 -> 0
A163: 2016-06-21 | B163: 576.9 | C163: =B163/MAX(B$5:B163)-1 -> -0.01418318524
A164: 2016-06-22 | B164: 583 | C164: =B164/MAX(B$5:B164)-1 -> -0.003759398496
A165: 2016-06-23 | B165: 575.5 | C165: =B165/MAX(B$5:B165)-1 -> -0.01657552973
A166: 2016-06-24 | B166: 580.1 | C166: =B166/MAX(B$5:B166)-1 -> -0.008714969241
A167: 2016-06-25 | B167: 614.5 | C167: =B167/MAX(B$5:B167)-1 -> 0
A168: 2016-06-26 | B168: 671 | C168: =B168/MAX(B$5:B168)-1 -> 0
A169: 2016-06-27 | B169: 705.9 | C169: =B169/MAX(B$5:B169)-1 -> 0
A170: 2016-06-28 | B170: 684.5 | C170: =B170/MAX(B$5:B170)-1 -> -0.03031590877
A171: 2016-06-29 | B171: 696.9 | C171: =B171/MAX(B$5:B171)-1 -> -0.01274968126
A172: 2016-06-30 | B172: 769.5 | C172: =B172/MAX(B$5:B172)-1 -> 0
A173: 2016-07-01 | B173: 748.7 | C173: =B173/MAX(B$5:B173)-1 -> -0.02703053931
A174: 2016-07-02 | B174: 757.6 | C174: =B174/MAX(B$5:B174)-1 -> -0.01546458739
A175: 2016-07-03 | B175: 767.3 | C175: =B175/MAX(B$5:B175)-1 -> -0.00285899935
A176: 2016-07-04 | B176: 743.9 | C176: =B176/MAX(B$5:B176)-1 -> -0.03326835608
A177: 2016-07-05 | B177: 668.9 | C177: =B177/MAX(B$5:B177)-1 -> -0.130734243
A178: 2016-07-06 | B178: 606 | C178: =B178/MAX(B$5:B178)-1 -> -0.2124756335
A179: 2016-07-07 | B179: 625.8 | C179: =B179/MAX(B$5:B179)-1 -> -0.1867446394
A180: 2016-07-08 | B180: 666 | C180: =B180/MAX(B$5:B180)-1 -> -0.134502924
A181: 2016-07-09 | B181: 664.9 | C181: =B181/MAX(B$5:B181)-1 -> -0.1359324237
A182: 2016-07-10 | B182: 627.4 | C182: =B182/MAX(B$5:B182)-1 -> -0.1846653671
A183: 2016-07-11 | B183: 662.2 | C183: =B183/MAX(B$5:B183)-1 -> -0.1394411956
A184: 2016-07-12 | B184: 646.3 | C184: =B184/MAX(B$5:B184)-1 -> -0.1601039636
A185: 2016-07-13 | B185: 639.7 | C185: =B185/MAX(B$5:B185)-1 -> -0.1686809617
A186: 2016-07-14 | B186: 674.7 | C186: =B186/MAX(B$5:B186)-1 -> -0.1231968811
A187: 2016-07-15 | B187: 674.8 | C187: =B187/MAX(B$5:B187)-1 -> -0.1230669266
A188: 2016-07-16 | B188: 705 | C188: =B188/MAX(B$5:B188)-1 -> -0.08382066277
A189: 2016-07-17 | B189: 659.3 | C189: =B189/MAX(B$5:B189)-1 -> -0.1432098765
A190: 2016-07-18 | B190: 681.3 | C190: =B190/MAX(B$5:B190)-1 -> -0.114619883
A191: 2016-07-19 | B191: 667.8 | C191: =B191/MAX(B$5:B191)-1 -> -0.1321637427
A192: 2016-07-20 | B192: 677 | C192: =B192/MAX(B$5:B192)-1 -> -0.1202079272
A193: 2016-07-21 | B193: 640.5 | C193: =B193/MAX(B$5:B193)-1 -> -0.1676413255
A194: 2016-07-22 | B194: 664.8 | C194: =B194/MAX(B$5:B194)-1 -> -0.1360623782
A195: 2016-07-23 | B195: 648.1 | C195: =B195/MAX(B$5:B195)-1 -> -0.1577647823
A196: 2016-07-24 | B196: 649.7 | C196: =B196/MAX(B$5:B196)-1 -> -0.1556855101
A197: 2016-07-25 | B197: 648 | C197: =B197/MAX(B$5:B197)-1 -> -0.1578947368
A198: 2016-07-26 | B198: 667.2 | C198: =B198/MAX(B$5:B198)-1 -> -0.1329434698
A199: 2016-07-27 | B199: 653.7 | C199: =B199/MAX(B$5:B199)-1 -> -0.1504873294
A200: 2016-07-28 | B200: 659.8 | C200: =B200/MAX(B$5:B200)-1 -> -0.142560104
A201: 2016-07-29 | B201: 665.5 | C201: =B201/MAX(B$5:B201)-1 -> -0.1351526966
A202: 2016-07-30 | B202: 665.3 | C202: =B202/MAX(B$5:B202)-1 -> -0.1354126056
A203: 2016-07-31 | B203: 683.2 | C203: =B203/MAX(B$5:B203)-1 -> -0.1121507472
... 515 more rows
